[Event "III Menorca Open-A 2024"]
[Site "Ciutadella Menorca"]
[Date "2024.04.05"]
[Round "6.19"]
[White "Akbas, Umut Ata"]
[Black "Nasuta, Grzegorz"]
[Result "1-0"]
[ECO "D30"]
[WhiteElo "2436"]
[BlackElo "2552"]
[Annotator "TA"]
[PlyCount "85"]
[EventDate "2024.04.02"]
[EventType "swiss"]
[EventCountry "ESP"]
[SourceTitle "playchess.com"]
[Source "ChessBase"]
[SourceQuality "1"]
[TimeControl "5400+30"]

{[%evp 18,85,23,13,31,27,33,19,29,5,16,4,11,13,32,0,60,48,70,42,71,0,0,0,81,71,93,83,217,179,217,218,199,197,267,185,241,245,212,193,268,271,345,231,270,288,372,383,361,373,487,417,497,510,512,439,655,602,691,680,1102,1132,5293,5021,5097,4645,2362,478,5731,2503]} 1. d4 {[%emt 0:04:46]} d5 {[%emt 0:00:06]} 2. c4 {[%emt 0:00:07]} c6 {[%emt 0:00:05]} 3. Nf3 {[%emt 0:00:08]} Nf6 {[%emt 0:00:06]} 4. e3 {[%emt 0:00:10]} e6 {[%emt 0:19:00]} 5. Nbd2 {[%emt 0:01:21]} Be7 {[%emt 0:21:00]} 6. b3 {[%emt 0:02:57]} Nbd7 {[%emt 0:00:49]} 7. Bb2 {[%emt 0:00:13]} b6 {[%emt 0:01:03]} 8. Bd3 {[%emt 0:00:12]} Bb7 {[%emt 0:00:05]} 9. O-O {[%emt 0:00:15]} O-O {[%emt 0:01:52]} 10. Qe2 {[%emt 0:00:18]} Re8 {[%emt 0:05:33]} 11. Rad1 {[%emt 0:02:52]} Qc7 {[%emt 0:00:31]} 12. Rfe1 {[%emt 0:12:10]} Rad8 {[%emt 0:08:14] The position is equal.} 13. e4 {[%emt 0:13:52]} dxe4 {[%emt 0:00:05]} 14. Nxe4 {[%emt 0:00:07]} Nxe4 {[%emt 0:14:11]} 15. Bxe4 {[%emt 0:05:54]} (15. Qxe4 {keeps more tension.} Nf8 16. c5 bxc5 17. dxc5 Bxc5 18. Qg4) 15... Nf8 {[%emt 0:12:01]} 16. h4 {[%emt 0:12:57][%cal Bh2h4,Bh4h5][%mdl 32]} f6 {[%emt 0:04:45]} (16... f5 $11 17. Bc2 c5) 17. h5 $14 {[%emt 0:04:07][%cal Oc4c5]} h6 {[%emt 0:00:37]} 18. a3 {[%emt 0:08:56] White is more active.} a5 {[%emt 0:04:56]} 19. Bc2 {[%emt 0:08:27]} (19. c5 $16) 19... Bd6 $11 {[%emt 0:00:51]} 20. Nh4 {[%emt 0:02:07]} f5 {[%emt 0:00:50] [#]} (20... c5 $11) 21. c5 $1 $16 {[%emt 0:01:47]} Be7 {[%emt 0:00:58]} 22. Ng6 {[%emt 0:01:19][%cal Oc2f5]} Rd5 {[%emt 0:02:15] A mistake that costs the game.} (22... bxc5 $16 23. Nxe7+ (23. Bxf5 exf5 24. Nxe7+ Kh7 $16) 23... Qxe7) 23. b4 $36 {[%emt 0:02:29][%mdl 2048] White is really pushing.} Bc8 {[%emt 0:00:07]} 24. Bb3 {[%emt 0:03:15]} Rdd8 {[%emt 0:00:04]} 25. Ne5 {[%emt 0:07:19]} Bf6 {[%emt 0:01:32]} (25... axb4 $142 26. axb4 Bf6) 26. Qf3 {[%emt 0:00:50]} Bxe5 {[%emt 0:00:10]} (26... axb4 {keeps fighting.} 27. axb4 (27. Nxc6 bxa3 28. Bxa3 Bb7 $16) 27... bxc5) 27. Rxe5 {[%emt 0:00:23]} (27. dxe5 $6 axb4 28. axb4 (28. Qxf5 bxc5 29. Qc2 Rxd1 $14) 28... Rxd1 29. Rxd1 bxc5) 27... axb4 {[%emt 0:00:58]} 28. axb4 {[%emt 0:00:57]} Kh8 {[%emt 0:00:12]} (28... bxc5 {was necessary.} 29. dxc5 Rxd1+ 30. Qxd1 Kh7) 29. Rde1 {[%emt 0:00:41][%cal Bd1e1,Be1e3,Be3f3,Bf3g3][%mdl 32] Black is weak on the dark squares} Qb7 {[%emt 0:01:19]} 30. Qf4 {[%emt 0:01:06][%cal Ob4b5] aiming for b5!} Kh7 {[%emt 0:00:24]} 31. g4 {[%emt 0:00:42]} bxc5 {[%emt 0:00:38]} 32. dxc5 {[%emt 0:00:24][%cal Rg4f5] gxf5 is the strong threat.} fxg4 {[%emt 0:00:24]} 33. Qxg4 {[%emt 0:00:50]} Qf7 {[%emt 0:00:01]} 34. R1e3 {[%emt 0:00:56]} Kh8 {[%emt 0:00:44]} 35. Rf3 {[%emt 0:00:25] White is clearly winning.} Qe7 {[%emt 0:00:54]} 36. Bc2 {[%emt 0:00:49] Strongly threatening Qf4. This pair of bishops is nice.} Rd5 {[%emt 0:00:38]} (36... Rd2 $142) 37. Qe4 {[%emt 0:00:57][%cal Of3f8] White wants to mate with Rxf8+!} Kg8 {[%emt 0:00:01]} 38. Rg3 {[%emt 0:00:07]} Rd7 {[%emt 0:00:59]} 39. Qf4 {[%emt 0:00:42] Repels Qf6} Qf7 {[%emt 0:00:21]} 40. Qxh6 {[%emt 0:00:40]} Ree7 {[%emt 0:00:31]} 41. Reg5 {[%emt 0:00:50]} e5 {[%emt 0:00:01]} 42. Bb3 {[%emt 0:00:42]} (42. Rxg7+ $142 Qxg7 43. Bb3+ (43. Rxg7+ Rxg7+ 44. Kh2 Rde7 $18) 43... Rd5 44. Qxc6 (44. Rxg7+ Rxg7+ 45. Kh2 Rh7 $18) (44. Bxd5+ cxd5 45. Bxe5 Qxg3+ 46. Bxg3 Re6 $18) (44. Bxe5 Qxg3+ 45. Bxg3 Be6 $18)) 42... Ne6 {[%emt 0:00:53]} (42... Qxb3 $142 43. Rxb3 Re6) 43. Bxe5 {[%emt 0:00:55] Weighted Error Value: White=0.31/Black=0.48.  Mistake:       	White=1     	Black=7      Inaccurate:     	White=4     	Black=2      OK:         	White=6     	Black=7      Brilliant:      	White=1     	---} (43. Rxg7+ $142 Qxg7 44. Bxe5 (44. Rxg7+ Rxg7+ 45. Kh1 Rd5 $18) (44. Bxe6+ Rxe6 45. Qxe6+ Kf8 $18)) 1-0

[Event "III Menorca Open-A 2024"]
[Site "Ciutadella Menorca"]
[Date "2024.04.05"]
[Round "6.20"]
[White "Adhiban, B.."]
[Black "Ghazarian, Kirk"]
[Result "1/2-1/2"]
[ECO "C02"]
[WhiteElo "2541"]
[BlackElo "2454"]
[Annotator "TA"]
[PlyCount "28"]
[EventDate "2024.04.02"]
[EventType "swiss"]
[EventCountry "ESP"]
[SourceTitle "playchess.com"]
[Source "ChessBase"]
[SourceQuality "1"]
[TimeControl "5400+30"]

{[%evp 11,28,-14,-10,-14,-22,-31,-35,-25,-25,-19,-8,-26,-7,-31,-12,-83,-66,-76,-79]} 1. e4 {[%emt 0:02:28]} e6 {[%emt 0:01:08]} 2. d4 {[%emt 0:00:53]} d5 {[%emt 0:00:25]} 3. e5 {[%emt 0:00:04]} c5 {[%emt 0:00:05]} 4. c3 {[%emt 0:00:02]} Nc6 {[%emt 0:00:12]} 5. Nf3 {[%emt 0:00:03]} Qb6 {[%emt 0:00:49]} 6. Bd3 {[%emt 0:00:10]} cxd4 {[%emt 0:00:30]} 7. O-O {[%emt 0:00:05]} Bd7 {[%emt 0:00:33]} 8. Nbd2 {[%emt 0:00:41]} dxc3 {[%emt 0:01:22]} 9. bxc3 {[%emt 0:00:02] Black is slightly better.} Nge7 {[%emt 0:00:13]} 10. Nb3 {[%emt 0:00:32]} Qc7 {[%emt 0:00:10]} 11. Qe2 {[%emt 0:00:07]} Nc8 {[%emt 0:04:30]} 12. Bf4 {[%emt 0:09:31]} Nb6 {[%emt 0:03:50]} 13. Nbd4 {[%emt 0:08:16]} (13. a4 $1 $11 {keeps the balance.}) 13... a6 $17 {[%emt 0:04:40]} 14. Nxc6 {[%emt 0:10:06]} Bxc6 {[%emt 0:06:33] Weighted Error Value: White=0.21 (precise) /Black=0.04 (flawless) .  Mistake:       	White=1     	---        OK:         	White=1     	Black=4} 1/2-1/2

[Event "III Menorca Open-A 2024"]
[Site "Ciutadella Menorca"]
[Date "2024.04.05"]
[Round "6.21"]
[White "Zhu, Hengyi"]
[Black "Cramling Bellon, Anna"]
[Result "1-0"]
[ECO "B45"]
[WhiteElo "2282"]
[BlackElo "2115"]
[Annotator "RC"]
[PlyCount "111"]
[EventDate "2024.04.02"]
[EventType "swiss"]
[EventCountry "ESP"]
[SourceTitle "playchess.com"]
[Source "ChessBase"]
[SourceQuality "1"]
[TimeControl "5400+30"]

1. e4 {[%emt 1:31:00]} c5 {[%emt 0:00:09]} 2. Nf3 {[%emt 0:00:00]} e6 {[%emt 0:00:03]} 3. d4 {[%emt 0:00:00]} cxd4 {[%emt 0:00:04]} 4. Nxd4 {[%emt 0:00:00]} Nf6 {[%emt 0:00:07]} 5. Nc3 {[%emt 0:00:00]} Nc6 {[%emt 0:00:05]} 6. Be2 {[%emt 0:00:00]} d5 {[%emt 0:03:39]} 7. exd5 {[%emt 0:00:00]} exd5 {[%emt 0:00:05]} 8. O-O {[%emt 0:00:00]} Be7 {[%emt 0:01:32]} 9. Re1 {[%emt 0:00:00]} O-O {[%emt 0:00:33]} 10. Bf3 {[%emt 0:00:00]} Nxd4 {[%emt 0:13:56]} 11. Qxd4 {[%emt 0:00:00]} Be6 {[%emt 0:00:10]} 12. Be3 {[%emt 0:00:00]} a6 {[%emt 0:05:21]} 13. Rad1 {[%emt 0:00:00]} Rc8 {[%emt 0:02:09]} 14. h3 {[%emt 0:00:00]} h6 {[%emt 0:03:46]} 15. Qd2 {[%emt 0:00:00]} b5 {[%emt 0:38:37]} 16. a3 {[%emt 0:00:00]} Qc7 {[%emt 0:01:15]} 17. Bd4 {[%emt 0:00:00]} Rfd8 {[%emt 0:01:38]} 18. Be5 {[%emt 0:00:00]} Qc6 {[%emt 0:00:57]} 19. Qf4 {[%emt 0:00:00]} Bd6 {[%emt 0:03:28]} 20. Rd4 {[%emt 0:00:00]} Bxe5 {[%emt 0:03:46]} 21. Rxe5 {[%emt 0:00:00]} Qd6 {[%emt 0:01:07]} 22. Qe3 {[%emt 0:00:00]} Nd7 {[%emt 0:03:46]} 23. Rh5 {[%emt 0:00:00]} Nb6 {[%emt 0:01:06]} 24. Rdh4 {[%emt 0:00:00]} Rc4 {[%emt 0:03:21]} 25. Ne2 {[%emt 0:00:00]} Rxh4 {[%emt 0:00:42]} 26. Rxh4 {[%emt 0:00:00]} Nc4 {[%emt 0:00:37]} 27. Qd4 {[%emt 0:00:00]} Qe5 {[%emt 0:02:16]} 28. Qxe5 {[%emt 0:00:00]} Nxe5 {[%emt 0:00:01]} 29. a4 {[%emt 0:00:00]} Rc8 {[%emt 0:01:41]} 30. axb5 {[%emt 0:00:00]} axb5 {[%emt 0:00:36]} 31. c3 {[%emt 0:03:03]} Rc4 {[%emt 0:03:30]} 32. Nd4 {[%emt 0:01:29]} Nxf3+ {[%emt 0:03:50]} 33. Nxf3 {[%emt 0:00:01]} Rxh4 {[%emt 0:00:52]} 34. Nxh4 {[%emt 0:00:01]} Kf8 {[%emt 0:00:10]} 35. Kf1 {[%emt 0:01:58]} Ke7 {[%emt 0:00:06]} 36. Ke2 {[%emt 0:00:05]} Kd6 {[%emt 0:00:07]} 37. Kd3 {[%emt 0:00:17]} Kc5 {[%emt 0:02:58]} 38. b4+ {[%emt 0:00:32]} Kd6 {[%emt 0:00:04]} 39. Kd4 {[%emt 0:00:19]} g5 {[%emt 0:00:41]} 40. Nf3 {[%emt 0:00:01]} f6 {[%emt 0:00:57]} 41. Nd2 {[%emt 0:02:00]} h5 {[%emt 0:00:09]} 42. Nb3 {[%emt 0:01:09]} Bd7 {[%emt 0:00:48]} 43. Nd2 {[%emt 0:00:37]} Be6 {[%emt 0:00:14]} 44. Nf3 {[%emt 0:00:03]} Bd7 {[%emt 0:00:28]} 45. Ke3 {[%emt 0:00:22]} Be6 {[%emt 0:00:11]} 46. h4 {[%emt 0:00:27]} g4 {[%emt 0:01:18]} 47. Nd4 {[%emt 0:00:08]} Bd7 {[%emt 0:00:08]} 48. Kf4 {[%emt 0:00:05]} Ke7 {[%emt 0:00:24]} 49. Ne2 {[%emt 0:01:09]} Kf7 {[%emt 0:00:54]} 50. Ke3 {[%emt 0:00:05]} Bc6 {[%emt 0:00:36]} 51. Nf4 {[%emt 0:00:10]} Ke7 {[%emt 0:00:29]} 52. Kd4 {[%emt 0:01:03]} Kd6 {[%emt 0:00:20]} 53. Nxh5 {[%emt 0:00:05]} f5 {[%emt 0:00:30]} 54. Nf4 {[%emt 0:00:02]} Be8 {[%emt 0:00:40]} 55. Nxd5 {[%emt 0:00:10]} Bc6 {[%emt 0:00:01]} 56. Nf4 {[%emt 0:00:01]} 1-0

[Event "III Menorca Open-A 2024"]
[Site "Ciutadella Menorca"]
[Date "2024.04.05"]
[Round "6.22"]
[White "Zhu, Hengyi"]
[Black "Cramling Bellon, Anna"]
[Result "*"]
[ECO "E18"]
[WhiteElo "2282"]
[BlackElo "2115"]
[Annotator "RC"]
[PlyCount "20"]
[EventDate "2024.04.02"]
[EventType "swiss"]
[EventCountry "ESP"]
[SourceTitle "playchess.com"]
[Source "ChessBase"]
[SourceQuality "1"]
[TimeControl "5400+30"]

1. d4 {[%emt 0:00:08]} Nf6 {[%emt 0:00:13]} 2. c4 {[%emt 0:00:06]} e6 {[%emt 0:00:19]} 3. Nf3 {[%emt 0:00:10]} b6 {[%emt 0:00:34]} 4. g3 {[%emt 0:00:23]} Bb7 {[%emt 0:00:21]} 5. Bg2 {[%emt 0:00:05]} Be7 {[%emt 0:00:24]} 6. O-O {[%emt 0:00:10]} O-O {[%emt 0:00:17]} 7. Nc3 {[%emt 0:00:06]} Ne4 {[%emt 0:00:16]} 8. Bd2 {[%emt 1:33:22]} Bf6 {[%emt 0:00:22]} 9. Re1 {[%emt 0:00:51]} d6 {[%emt 0:03:23]} 10. Qc2 {[%emt 0:01:19]} Nxd2 {[%emt 0:00:29]} *

[Event "III Menorca Open-A 2024"]
[Site "Ciutadella Menorca"]
[Date "2024.04.06"]
[Round "7.1"]
[White "Aryan Chopra"]
[Black "Dardha, Daniel"]
[Result "1/2-1/2"]
[ECO "B28"]
[WhiteElo "2630"]
[BlackElo "2628"]
[Annotator "TA"]
[PlyCount "39"]
[EventDate "2024.04.02"]
[EventType "swiss"]
[EventCountry "ESP"]
[SourceTitle "playchess.com"]
[Source "ChessBase"]
[SourceQuality "1"]
[TimeControl "5400+30"]

{[%evp 17,39,31,36,47,28,37,33,27,25,22,30,28,29,22,31,30,29,26,45,42,47,18,46,23]} 1. e4 {[%emt 0:00:05]} c5 {[%emt 0:00:54]} 2. Nf3 {[%emt 0:00:06]} a6 {[%emt 0:00:14]} 3. c4 {[%emt 0:00:20][%cal Bc2c4,Bc4d5][%mdl 32]} Nc6 {[%emt 0:00:20]} 4. d4 {[%emt 0:00:08]} cxd4 {[%emt 0:00:04]} 5. Nxd4 {[%emt 0:00:05]} Nf6 {[%emt 0:00:17]} 6. Nc3 {[%emt 0:00:37]} e5 {[%emt 0:00:13]} 7. Nf5 {[%emt 0:01:49]} d5 {[%emt 0:00:10]} 8. cxd5 {[%emt 0:00:55]} Bxf5 {[%emt 0:00:30]} 9. exf5 {[%emt 0:00:46]} Nd4 {[%emt 0:00:05][%cal Of8b4]} 10. Bd3 {[%emt 0:00:24]} Be7 {[%emt 0:00:17]} 11. O-O {[%emt 0:00:45]} O-O $1 {[%emt 0:00:05]} 12. Be3 {[%emt 0:16:03]} Nxd5 {[%emt 0:02:45]} 13. Bxd4 {[%emt 0:00:24]} exd4 {[%emt 0:01:08]} 14. Nxd5 {[%emt 0:00:26]} Qxd5 {[%emt 0:00:07]} 15. Re1 {[%emt 0:01:24]} Bf6 {[%emt 0:04:50]} 16. g3 {[%emt 0:04:13]} Rac8 {[%emt 0:07:31]} 17. a3 {[%emt 0:00:58]} b5 {[%emt 0:08:07]} 18. a4 {[%emt 0:14:04]} bxa4 {[%emt 0:01:00]} 19. Rxa4 {[%emt 0:00:47]} Rb8 {[%emt 0:05:26]} 20. Qd2 {[%emt 0:03:21] Weighted Error Value: White=0.02 (flawless) /Black=0.06 (flawless) .  Inaccurate:     	White=1     	Black=1      OK:         	White=4     	Black=4      Strong:       	---       	Black=1} 1/2-1/2

[Event "III Menorca Open-A 2024"]
[Site "Ciutadella Menorca"]
[Date "2024.04.06"]
[Round "7.2"]
[White "Pranav Anand"]
[Black "Erigaisi Arjun"]
[Result "0-1"]
[ECO "B34"]
[WhiteElo "2519"]
[BlackElo "2748"]
[Annotator "TA"]
[PlyCount "90"]
[EventDate "2024.04.02"]
[EventType "swiss"]
[EventCountry "ESP"]
[SourceTitle "playchess.com"]
[Source "ChessBase"]
[SourceQuality "1"]
[TimeControl "5400+30"]

{[%evp 21,90,-29,-21,-12,-14,-39,-29,-40,-42,-44,-34,-35,-24,-54,-20,-91,-42,-45,-41,-49,-39,-63,-43,-69,-59,-68,-65,-103,-41,-52,-47,-131,-122,-125,-133,-140,-137,-212,-218,-217,-206,-331,-321,-308,-233,-508,-502,-658,-641,-718,-714,-856,-607,-557,-520,-1631,-1486,-4710,-4710,-29984,-29985,-29987,-29988,-29988,-29989,-29989,-29990,-29990,-29991,-29991,-29992]} 1. e4 {[%emt 0:00:38]} c5 {[%emt 0:01:03]} 2. Nf3 {[%emt 0:00:12]} g6 {[%emt 0:00:06]} 3. d4 {[%emt 0:01:39]} cxd4 {[%emt 0:00:42]} 4. Nxd4 {[%emt 0:00:08]} Nc6 {[%emt 0:00:06]} 5. Nc3 {[%emt 0:00:40]} Bg7 {[%emt 0:00:07]} 6. Be3 {[%emt 0:00:09]} Nf6 {[%emt 0:00:07]} 7. Nxc6 {[%emt 0:03:24]} bxc6 {[%emt 0:00:24]} 8. e5 {[%emt 0:00:04]} Ng8 {[%emt 0:00:27]} 9. Bd4 {[%emt 0:00:23]} Qa5 {[%emt 0:01:15]} 10. e6 {[%emt 0:18:07]} Nf6 {[%emt 0:00:59]} 11. exf7+ {[%emt 0:01:36]} Kxf7 {[%emt 0:02:07]} 12. Bc4+ {[%emt 0:07:12]} d5 {[%emt 0:01:59]} 13. Be2 {[%emt 0:00:05]} Qc7 {[%emt 0:09:04]} 14. O-O {[%emt 0:03:47] Black has an edge.} e5 {[%emt 0:00:05]} 15. Bc5 {[%emt 0:00:03]} Re8 {[%emt 0:04:12]} 16. f3 {[%emt 0:07:26]} Kg8 {[%emt 0:06:43]} 17. Qd2 {[%emt 0:04:32]} Bf5 {[%emt 0:00:25]} 18. b4 {[%emt 0:03:15]} (18. Rae1 $11) 18... Rad8 {[%emt 0:05:40]} (18... a5 $17 19. a3 h5) 19. Rae1 {[%emt 0:02:33]} h5 {[%emt 0:03:09]} 20. Ba6 {[%emt 0:08:20]} Kh7 {[%emt 0:01:52]} 21. Kh1 {[%emt 0:03:16]} Bh6 {[%emt 0:04:55]} 22. Qf2 {[%emt 0:00:12][%cal Of2h4]} Nd7 {[%emt 0:02:31] Hoping for ...Nxc5.} 23. Na4 {[%emt 0:05:44]} Nxc5 {[%emt 0:03:59]} 24. Qxc5 {[%emt 0:00:03]} h4 {[%emt 0:07:47]} ({Black should try} 24... e4 $17 {Threatens to win with ...exf3.} 25. fxe4 Bf8 (25... Bxe4 26. a3 $17) (25... dxe4 26. Rxf5 gxf5 27. Qxf5+ Kg7 28. Qxh5 $17)) 25. Qf2 {[%emt 0:03:54]} Bg5 {[%emt 0:05:11]} 26. c3 {[%emt 0:06:12] White is now going downhill.} (26. Re2 $15) 26... e4 $17 {[%emt 0:04:36]} 27. f4 {[%emt 0:02:53]} Bf6 {[%emt 0:00:22]} 28. h3 {[%emt 0:00:11]} Rf8 $36 {[%emt 0:08:26][%mdl 2048] Keeping White busy.} 29. Rc1 {[%emt 0:01:55] [#]} (29. Rd1 $17) 29... g5 $1 $19 {[%emt 0:03:55]} 30. Rce1 {[%emt 0:08:06]} Kg6 {[%emt 0:06:58]} 31. b5 {[%emt 0:01:34]} (31. a3 $142) 31... cxb5 {[%emt 0:02:59]} 32. Bxb5 {[%emt 0:00:05]} Rb8 {[%emt 0:00:02]} ({Inferior is} 32... Bxc3 33. Nxc3 Qxc3 34. Rc1 $11 (34. fxg5 Qe5 $15)) 33. c4 {[%emt 0:06:15]} (33. Be2) 33... dxc4 {[%emt 0:03:24]} 34. fxg5 {[%emt 0:00:02]} Bxg5 {[%emt 0:00:02]} 35. Nc3 {[%emt 0:00:11]} Qe5 {[%emt 0:00:22][%csl LRb5,LRc3]} 36. Qc2 {[%emt 0:02:16]} e3 {[%emt 0:01:14]} 37. Rxf5 {[%emt 0:00:56]} Qxf5 {[%emt 0:00:05]} 38. Qa4 {[%emt 0:00:04] [#]} (38. Qxf5+ $142 Rxf5 39. a4) 38... e2 $1 {[%emt 0:00:25]} 39. Qxc4 {[%emt 0:01:19] [#]} (39. Nxe2 Qxb5) 39... Rxb5 $1 {[%emt 0:00:25][%mdl 512]} 40. Qxe2 {[%emt 0:00:30] [#]} (40. Nxe2 Re5) 40... Re5 $3 {[%emt 0:00:34][%mdl 512] Black mates.} 41. Qxe5 {[%emt 0:00:27]} (41. Ne4 Rfe8) 41... Qxe5 {[%emt 0:00:05]} 42. Rxe5 {[%emt 0:00:04]} Rf1+ {[%emt 0:00:04]} 43. Kh2 {[%emt 0:00:11]} Bf4+ {[%emt 0:00:04]} 44. g3 {[%emt 0:00:04]} hxg3+ {[%emt 0:00:05]} 45. Kg2 {[%emt 0:00:03]} Rf2+ {[%emt 0:00:05] Weighted Error Value: White=0.82/Black=0.21 (precise) .  Mistake:       	White=5     	Black=2      Inaccurate:     	White=4     	Black=1      OK:         	White=5     	Black=7      Best:        	White=1     	Black=1      Strong:       	---       	Black=1      Brilliant:      	---       	Black=1} 0-1

[Event "III Menorca Open-A 2024"]
[Site "Ciutadella Menorca"]
[Date "2024.04.06"]
[Round "7.3"]
[White "Klimkowski, Jan"]
[Black "Fedoseev, Vladimir"]
[Result "1/2-1/2"]
[ECO "C07"]
[WhiteElo "2505"]
[BlackElo "2690"]
[Annotator "TA"]
[PlyCount "46"]
[EventDate "2024.04.02"]
[EventType "swiss"]
[EventCountry "ESP"]
[SourceTitle "playchess.com"]
[Source "ChessBase"]
[SourceQuality "1"]
[TimeControl "5400+30"]

{[%evp 11,46,15,7,2,11,10,32,33,35,0,0,0,29,17,8,0,0,0,0,0,0,0,14,10,31,42,33,8,25,28,84,42,41,47,54,45,53]} 1. e4 {[%emt 1:31:00]} e6 {[%emt 0:01:21]} 2. d4 {[%emt 0:00:00]} d5 {[%emt 0:00:05]} 3. Nd2 {[%emt 0:00:00]} c5 {[%emt 0:00:17]} 4. Ngf3 {[%emt 0:00:00]} cxd4 {[%emt 0:00:08]} 5. Nxd4 {[%emt 0:00:00]} Ne7 {[%emt 0:00:07][%cal Bg8e7,Be7d5,Bd5f6][%mdl 32]} 6. exd5 {[%emt 0:00:00]} Nxd5 {[%emt 0:00:09]} 7. N2f3 {[%emt 0:00:00]} Bc5 {[%emt 0:03:55]} 8. Bd3 {[%emt 0:00:00]} Nd7 {[%emt 0:06:24]} 9. O-O {[%emt 0:00:00]} O-O {[%emt 0:02:13]} 10. c4 {[%emt 0:00:00]} N5f6 {[%emt 0:00:10] [#] Threatens to win with ...e5.} 11. Bc2 {[%emt 0:00:00]} Qc7 {[%emt 0:05:38]} 12. Nb5 {[%emt 0:00:00]} Qb8 {[%emt 0:01:17]} 13. Qe2 {[%emt 0:00:00]} b6 {[%emt 0:01:13]} 14. Bg5 {[%emt 0:00:00][%cal Bc1g5,Bg5h4,Bh4g3][%mdl 32]} Bb7 {[%emt 0:01:06]} 15. Rad1 {[%emt 0:00:00][%cal Od1d7]} a6 {[%emt 0:13:33]} 16. Nc3 {[%emt 0:00:00][%cal Od1d7] [#] And now Rxd7! would win.} h6 {[%emt 0:03:35] Hoping for ...Bxf3.} 17. Bh4 {[%emt 0:00:00][%cal Od1d7]} Qf4 {[%emt 0:02:45] White must now prevent ...Bxf3.} 18. Bg3 {[%emt 0:00:00]} Qg4 {[%emt 0:00:11]} 19. a3 {[%emt 0:00:00]} Rfc8 {[%emt 0:04:52]} 20. Rd2 {[%emt 0:00:00]} e5 {[%emt 0:13:00]} 21. Nxe5 {[%emt 0:00:00]} Nxe5 {[%emt 0:00:14] White is slightly better.} 22. Qxe5 {[%emt 0:00:00] Bf5 would now be deadly.} Qxc4 {[%emt 0:02:18]} 23. Bd3 {[%emt 0:00:00]} Qb3 {[%emt 0:04:29] Weighted Error Value: White=0.07 (flawless) /Black=0.12 (very precise) .  Mistake:       	---       	Black=1      Inaccurate:     	White=2     	Black=1      OK:         	White=7     	Black=9      Best:        	White=2     	---} 1/2-1/2

[Event "III Menorca Open-A 2024"]
[Site "Ciutadella Menorca"]
[Date "2024.04.06"]
[Round "7.4"]
[White "Seemann, Jakub"]
[Black "Warmerdam, Max"]
[Result "0-1"]
[ECO "B50"]
[WhiteElo "2465"]
[BlackElo "2628"]
[Annotator "TA"]
[PlyCount "72"]
[EventDate "2024.04.02"]
[EventType "swiss"]
[EventCountry "ESP"]
[SourceTitle "playchess.com"]
[Source "ChessBase"]
[SourceQuality "1"]
[TimeControl "5400+30"]

{[%evp 10,72,15,12,6,8,8,7,3,1,10,0,0,0,0,0,4,0,0,0,0,0,8,-7,0,0,0,0,0,-15,0,0,0,0,0,0,0,0,0,-9,-7,-15,-28,-114,-143,-142,-145,-151,-170,-174,-153,-169,-155,-269,-269,-333,-276,-311,-262,-444,-310,-408,-395,-388,-374]} 1. e4 {[%emt 0:01:16]} c5 {[%emt 0:01:59]} 2. Nf3 {[%emt 0:00:04]} d6 {[%emt 0:00:05]} 3. Bb5+ {[%emt 0:00:04]} Bd7 {[%emt 0:00:06]} 4. Bxd7+ {[%emt 0:00:06]} Nxd7 {[%emt 0:00:39]} 5. c3 {[%emt 0:00:25]} Ngf6 {[%emt 0:00:27]} 6. Qe2 {[%emt 0:00:10]} e6 {[%emt 0:00:43]} 7. d4 {[%emt 0:00:14]} cxd4 {[%emt 0:04:17]} 8. cxd4 {[%emt 0:00:36]} d5 {[%emt 0:00:08] The position is equal.} 9. e5 {[%emt 0:02:18]} Bb4+ {[%emt 0:00:41]} 10. Bd2 {[%emt 0:12:16]} Bxd2+ {[%emt 0:00:18]} 11. Nbxd2 {[%emt 0:00:28]} Ng8 {[%emt 0:00:06]} 12. O-O {[%emt 0:03:33][%cal Bh1f1,Bf1c1,Bc1c3][%mdl 32]} Ne7 {[%emt 0:01:33]} 13. Rfc1 {[%emt 0:05:44]} Qb6 {[%emt 0:11:46]} 14. Nb3 {[%emt 0:02:44]} O-O {[%emt 0:03:04]} 15. Nc5 {[%emt 0:05:02]} Rfd8 {[%emt 0:05:44]} 16. Rc3 {[%emt 0:04:28]} Nxc5 {[%emt 0:10:08]} 17. Rxc5 {[%emt 0:14:23]} Rdc8 {[%emt 0:02:01]} 18. Rac1 {[%emt 0:01:18]} Rc6 {[%emt 0:02:27]} 19. Qd2 {[%emt 0:03:42]} a5 {[%emt 0:00:56]} 20. Rxc6 {[%emt 0:08:34]} Nxc6 {[%emt 0:01:23]} 21. h4 {[%emt 0:01:55]} a4 {[%emt 0:04:33]} 22. Rc3 {[%emt 0:08:19]} Ra5 {[%emt 0:09:37]} 23. Qc2 {[%emt 0:00:42]} h6 {[%emt 0:04:22] Prevents Ng5.} 24. g4 {[%emt 0:00:07]} Rb5 {[%emt 0:01:56]} ({And not} 24... Nxd4 25. Rc8+) 25. Qxa4 {[%emt 0:04:17]} Rxb2 {[%emt 0:00:36]} 26. Rb3 {[%emt 0:02:25]} (26. h5 $11) 26... Rxb3 $17 {[%emt 0:01:00]} 27. axb3 {[%emt 0:00:21]} Qa5 {[%emt 0:01:30]} 28. Qxa5 {[%emt 0:00:58]} Nxa5 {[%emt 0:01:16][%mdl 4096] Endgame. KN-KN} 29. Nd2 {[%emt 0:00:00] [#]} h5 $1 {[%emt 0:00:19][%mdl 512]} 30. gxh5 {[%emt 0:03:45][%cal Oh5h6] [#]} Kh7 {[%emt 0:00:18]} 31. Kg2 {[%emt 0:00:30]} (31. f4 $17 {was necessary.}) 31... Kh6 $19 {[%emt 0:02:10]} 32. Kh3 {[%emt 0:07:30]} Kxh5 {[%emt 0:00:11]} (32... Nc6 $2 33. Nf3 Kxh5 34. Kg3) 33. Kg3 {[%emt 0:00:01]} b5 {[%emt 0:12:34]} 34. Kh3 $2 {[%emt 0:02:06]} (34. f4) 34... b4 {[%emt 0:01:24] ...g5 is the strong threat.} 35. Kg3 {[%emt 0:00:22]} Nc6 {[%emt 0:00:33]} 36. Nf3 {[%emt 0:00:02]} Ne7 {[%emt 0:00:08] Weighted Error Value: White=0.25 (precise) /Black=0.06 (flawless) .  Mistake:       	White=3     	---        Inaccurate:     	White=1     	Black=1      OK:         	White=10    	Black=16     Best:        	White=1     	Black=5} 0-1